Cogmind - Beta 16 @@@ ROGUE MODE // 2025.11.01 @ 01:57:05 Player: daxter767676 Result: Destroyed by G-67 Veteran with Field Laser Performance ------------- Evolutions (4) 2000 Regions Visited (8) 1600 Robots Destroyed (22) 110 Value Destroyed (1093) 1093 Prototype IDs (11) 220 Alien Tech Used (0) 0 Bonus (2495) 2495 TOTAL SCORE: 7518 Bonus ------- Follower Combat Kills 1395 Registered with UFD 300 Met Optimus in HQ 500 Built Enhanced Grunts 300 Cogmind --------- Core Integrity 0/850 Matter 205/300 Energy 39/100 System Corruption 0% Temperature Cool (9) Movement Core (50) Location -6/Hub_04(d) Parts ------- > --- POWER (2) -------- (None) > --- PROPULSION (4) --- (None) > --- UTILITY (6) ------ Improved Sensor Array Improved Terrain Scan Processor Improved Terrain Scan Processor Improved Terrain Scan Processor Transmission Jammer System Guard > --- WEAPON (3) ------- (None) > --- INVENTORY (5) ---- Improved Hover Unit Experimental Terrain Scan Processor Relay Coupler [Proto] (3) Relay Coupler [Proto] (3) Mapping Drone Bay (3/3) Peak State ------------ > --- POWER ------------ Light Angular Momentum Engine Quantum Reactor > --- PROPULSION ------- Carbon-fiber Leg Carbon-fiber Leg Carbon-fiber Leg Carbon-fiber Leg > --- UTILITY ---------- Advanced Heat Sink Melee Analysis Suite Melee Analysis Suite Centrium Medium Armor Plating Centrium Medium Armor Plating System Guard > --- WEAPON ----------- Advanced Variable Charge Gun Ripper Ripper > --- INVENTORY -------- Improved Hover Unit Experimental Terrain Scan Processor Relay Coupler [Proto] Relay Coupler [Proto] Mapping Drone Bay [Rating: 79] Favorites ----------- Power Angular Momentum Engine Engine Angular Momentum Engine Power Core Light Nuclear Core Reactor Quantum Reactor Propulsion Carbon-fiber Leg Treads Overtuned Treads Leg Carbon-fiber Leg Wheel Wheel Hover Unit Hover Unit Utility Melee Analysis Suite Device Improved Heat Sink Storage Small Storage Unit Processor Melee Analysis Suite Protection Centrium Medium Armor Plating Weapon Ripper Energy Gun Advanced Variable Charge Gun Ballistic Gun Light Assault Rifle Ballistic Cannon Magnetic Acceleration Cannon Launcher Grenade Launcher Slashing Weapon Ripper Build | -11 -10 -10 -9 -6 -6 -6 -6 -6 ------- Run | Yrd Mat Sub Scr Fac Ext Cet Arc Hub Slots Evolved 8 | . . . . 8 . . . . Power 1 | . . . . 1 . . . . Propulsion 2 | . . . . 2 . . . . Utility 4 | . . . . 4 . . . . Weapon 1 | . . . . 1 . . . . Parts Attached 79 | . 2 5 11 5 40 7 1 8 Power 18 | . . 1 1 2 10 3 1 . Engine 11 | . . . 1 2 5 2 1 . Core 5 | . . 1 . . 4 . . . Reactor 2 | . . . . . 1 1 . . Propulsion 29 | . 2 1 5 1 17 1 . 2 Treads 2 | . . . 2 . . . . . Leg 20 | . . . . . 17 1 . 2 Wheel 2 | . . 1 . 1 . . . . Hover 5 | . 2 . 3 . . . . . Flight . | . . . . . . . . . Utility 22 | . . 1 2 2 10 2 . 5 Device 8 | . . . 1 1 4 . . 2 Storage . | . . . . . . . . . Processor 7 | . . . 1 1 2 . . 3 Hackware . | . . . . . . . . . Protection 7 | . . 1 . . 4 2 . . Artifact . | . . . . . . . . . Weapon 10 | . . 2 3 . 3 1 . 1 Energy Gun 2 | . . 1 . . . 1 . . Energy Cannon . | . . . . . . . . . Ballistic Gun 2 | . . . . . 1 . . 1 Ballistic Cannon 3 | . . . 2 . 1 . . . Launcher 1 | . . 1 . . . . . . Special Weapon . | . . . . . . . . . Impact Weapon . | . . . . . . . . . Slashing Weapon 2 | . . . 1 . 1 . . . Piercing Weapon . | . . . . . . . . . Special Melee Weapon . | . . . . . . . . . Unidentified Prototypes 2 | . . . . . . 2 . . Parts Lost 33 | . . 1 . . 18 3 2 9 Power 8 | . . . . . 5 2 1 . Propulsion 13 | . . 1 . . 6 1 . 5 Utility 6 | . . . . . 4 . . 2 Weapon 6 | . . . . . 3 . 1 2 Highest Loss Streak 9 | . . 1 . . 9 3 2 8 To Critical Strikes . | . . . . . . . . . Average Backups 5 | 6 7 8 6 5 5 5 5 5 Power . | 1 1 1 . . . . . . Propulsion 1 | 4 4 4 1 1 1 1 1 1 Utility 3 | . . . 2 4 4 4 4 4 Weapon . | 1 1 2 1 . . . . . Tool/Special . | . . . . . . . . . Unused Backups 19 | . 7 1 6 . . . . 5 Power 4 | . 1 1 2 . . . . . Propulsion 7 | . 3 . 3 . . . . 1 Utility 5 | . 1 . . . . . . 4 Weapon 3 | . 2 . 1 . . . . . Tool/Special . | . . . . . . . . . Average Slot Usage (%) 83 | . 85 88 92 55 85 99 90 68 Engine 5 | . 14 5 . 11 5 5 1 3 Core 5 | . . 8 13 . 5 . . . Treads 2 | . . . . 13 2 . . . Leg 10 | . 2 . . . 17 25 26 15 Wheel 1 | . . 1 1 3 1 . . . Hover 8 | . 25 24 26 . . . . . Device 9 | . . . 6 12 15 6 6 4 Storage 2 | . 14 14 7 . . . . . Processor 9 | . . . 5 1 10 20 20 22 Protection 4 | . . 4 1 . 5 13 13 8 Energy Gun 3 | . . 2 7 . . 5 6 3 Ballistic Gun 4 | . 28 24 6 . . . . . Ballistic Cannon 3 | . . . 6 6 3 . . . Slashing Weapon 8 | . . . 7 5 13 13 7 3 Peak Build Rating 79 | 6 6 12 30 46 69 79 79 75 Average Rating 43 | 6 5 8 21 39 55 76 72 51 On Entrance 36 | 6 6 6 12 29 46 69 79 75 Avg Prop Armor Cover (%) 15 | . . 6 6 15 13 . . 28 Naked Turns . | . . . . . . . . . Heaviest Build 56 | 10 10 16 25 42 56 56 55 52 Greatest Support 70 | 20 20 16 36 36 70 70 60 60 Greatest Overweight (x) 10 | . 1 2 1 4 10 . . 2 Average Overweight (x) . | . . . . 2 . . . . Largest Inventory Capacity 8 | 8 8 8 8 5 5 5 5 5 Average Capacity 5 | 8 8 8 6 5 5 5 5 5 Most Carried 8 | 6 8 8 8 5 5 5 5 5 Average Carried 5 | 6 7 7 6 5 5 5 5 5 Final Capacity 8 | 8 8 8 5 5 5 5 5 5 Final Carried 8 | 6 8 8 5 5 5 5 5 5 Scrap Suit Usage (%) 27 | . . . 3 100 37 . . . Parts Cannibalized 7 | . . . . . 7 . . . Class Distribution -------------------- 39% | Mutant 29% | Scavenger-Gladiator 16% | Scavenger-Mutant 11% | Scrapper Dominant Class ---------------- Mutant | -10/Materials Mutant | -10/Subcaves Mutant | -9/Scraptown Mutant | -6/Factory Scavenger-Gladiator | -6/Extension Scavenger-Gladiator | -6/Cetus Scavenger-Mutant | -6/Archives Scavenger-Mutant | -6/Hub_04(d) Resources | -11 -10 -10 -9 -6 -6 -6 -6 -6 ----------- Run | Yrd Mat Sub Scr Fac Ext Cet Arc Hub Matter Collected 1162 | 200 . 46 165 47 496 114 15 79 Remotely . | . . . . . . . . . Salvage Created 1199 | 28 . 43 . 18 917 . 88 105 Parts 46 | 1 . 3 . 3 30 . 4 5 Haulers Intercepted . | . . . . . . . . . Recyclers Shooed 1 | . . . . . 1 . . . Parts Field Recycled . | . . . . . . . . . Retrieved Matter . | . . . . . . . . . Parts Self-Destructed 2 | . . 2 . . . . . . Prevented . | . . . . . . . . . Parts Restored . | . . . . . . . . . Kills | -11 -10 -10 -9 -6 -6 -6 -6 -6 ------- Run | Yrd Mat Sub Scr Fac Ext Cet Arc Hub Combat Hostiles Destroyed 19 | . . 1 . . 15 . 1 2 Melee 16 | . . . . . 14 . 1 1 Guns 2 | . . 1 . . . . . 1 Cannons 1 | . . . . . 1 . . . Classes Destroyed 6 | 1 . 1 . 1 2 . 1 . Worker 1 | . . . . 1 . . . . Tunneler 1 | 1 . . . . . . . . Operator 1 | . . . . . . . 1 . Grunt 13 | . . 1 . . 10 . . 2 Sentry 4 | . . . . . 3 . 1 . Behemoth 2 | . . . . . 2 . . . Best Kill Streak 2 | 1 . 1 . 1 2 . 1 1 Combat Bots Only 2 | . . 1 . . 2 . 1 1 Max Kills in Single Turn 1 | 1 . 1 . 1 1 . 1 1 Gunslinging . | . . . . . . . . . Exploded . | . . . . . . . . . Melee 1 | . . . . . 1 . 1 1 Uniques/NPCs Destroyed . | . . . . . . . . . Combat | -11 -10 -10 -9 -6 -6 -6 -6 -6 -------- Run | Yrd Mat Sub Scr Fac Ext Cet Arc Hub Hostile Shots Fired 658 | . . 7 1 . 418 22 39 171 Missed 219 | . . 2 . . 133 10 12 62 Hits 439 | . . 5 1 . 285 12 27 109 Melee 3 | . . . . . . . . 3 Projectile 436 | . . 5 1 . 285 12 27 106 Critical Strikes 15 | . . 1 . . 7 2 1 4 Damage Taken 6056 | . . 101 12 . 3516 340 642 1445 Core 864 | . . . 12 . 368 . 96 388 Absorbed by Shields 239 | . . . . . 201 38 . . Ignored by Resistances 29 | . . . . . 29 . . . Regen/Repaired (Parts) 135 | . . . . 15 120 . . . Core Remaining (%) 97 | 100 . . 95 . . . . . Volleys Fired 55 | 4 . 7 . 1 17 15 . 11 Largest 2 | 2 . 2 . 1 2 1 . 1 Hottest 240 | 40 . 40 . 44 125 240 . 240 Shots Fired 69 | 8 . 11 . 1 23 15 . 11 Gun 39 | 8 . 8 . . 6 6 . 11 Cannon 27 | . . . . 1 17 9 . . Launcher 3 | . . 3 . . . . . . Special . | . . . . . . . . . Kinetic 44 | 8 . 8 . 1 17 9 . 1 Thermal 22 | . . . . . 6 6 . 10 Explosive 3 | . . 3 . . . . . . Electromagnetic . | . . . . . . . . . Robot Hit Streak 9 | 1 . 9 . . 7 5 . 2 Robot Miss Streak 3 | 1 . . . 1 1 3 . 2 Penetration Max . | . . . . . . . . . Secondary Targets . | . . . . . . . . . Shots Hit Robots 131 | 4 . 8 . 1 97 5 6 10 Core Hits 46 | 1 . 5 . 1 30 2 3 4 Critical Kills . | . . . . . . . . . Critical Parts Destroyed . | . . . . . . . . . Critical Strikes 21 | . . . . . 20 1 . . Burn 1 | . . . . . 1 . . . Blast 3 | . . . . . 2 1 . . Sever 17 | . . . . . 17 . . . Melee Attacks 146 | . . . . 2 131 . 7 6 Impact . | . . . . . . . . . Slashing 146 | . . . . 2 131 . 7 6 Piercing . | . . . . . . . . . Sneak Attacks 2 | . . . . . 1 . 1 . Combat Hostiles . | . . . . . . . . . Follow-up Attacks 18 | . . . . . 16 . 2 . Damage Inflicted 4472 | 36 . 57 . 33 3381 173 300 492 Guns 505 | 36 . 57 . . 115 . . 297 Cannons 607 | . . . . . 434 173 . . Explosions . | . . . . . . . . . Melee 3360 | . . . . 33 2832 . 300 195 Ramming . | . . . . . . . . . Kinetic 700 | 36 . 57 . . 434 173 . . Thermal 412 | . . . . . 115 . . 297 Explosive . | . . . . . . . . . Electromagnetic . | . . . . . . . . . Impact . | . . . . . . . . . Slashing 3360 | . . . . 33 2832 . 300 195 Piercing . | . . . . . . . . . Highest Corruption . | . . . . . . . . . Average Corruption . | . . . . . . . . . Corruption Purged . | . . . . . . . . . Corruption Blocked . | . . . . . . . . . Overload Shots 6 | . . . . . . 2 . 4 Overflow Damage 89 | . . 2 . . 87 . . . Projectiles . | . . . . . . . . . Explosions 2 | . . 2 . . . . . . Melee 87 | . . . . . 87 . . . Knockbacks 4 | . . . . . 4 . . . Impact . | . . . . . . . . . Kinetic 4 | . . . . . 4 . . . Secondary . | . . . . . . . . . Self-Inflicted Damage 33 | . . 33 . . . . . . Shots 2 | . . 2 . . . . . . Rammed . | . . . . . . . . . Targets Rammed . | . . . . . . . . . Kicked . | . . . . . . . . . Crushed . | . . . . . . . . . Highest Temperature 591 | . . 9 . 2 177 329 . 591 Average Temperature 147 | . . 9 . 1 78 115 . 222 Received Heat Transfer 2037 | . . 57 . . 1283 18 153 526 Effects 4 | . . . . . . . . 4 Shutdowns 2 | . . . . . . . . 2 Matter Decay 2 | . . . . . . . . 2 Siege Activations . | . . . . . . . . . Martial Activations . | . . . . . . . . . Shielding Activations . | . . . . . . . . . Robots Disrupted . | . . . . . . . . . Combat Hostiles . | . . . . . . . . . Robots Corrupted . | . . . . . . . . . Combat Hostiles . | . . . . . . . . . Parts Fried . | . . . . . . . . . Impact Corruptions . | . . . . . . . . . Robots Melted . | . . . . . . . . . Combat Hostiles . | . . . . . . . . . Parts Melted . | . . . . . . . . . Heat Transferred 520 | . . . . . 259 . . 261 Parts Sabotaged . | . . . . . . . . . Parts Stolen . | . . . . . . . . . Parts Stripped . | . . . . . . . . . Power Chain Reactions . | . . . . . . . . . Alert | -11 -10 -10 -9 -6 -6 -6 -6 -6 ------- Run | Yrd Mat Sub Scr Fac Ext Cet Arc Hub Maximum Alert Level 1 | . . . . . 1 1 . . Low Security (%) 92 | 100 100 . . 100 90 75 100 100 Level 1 7 | . . . . . 9 24 . . Level 2 . | . . . . . . . . . Level 3 . | . . . . . . . . . Level 4 . | . . . . . . . . . Level 5 . | . . . . . . . . . High Security . | . . . . . . . . . Max Security . | . . . . . . . . . Peak Influence 373 | 5 3 . . 6 373 229 108 142 Initial 196 | . 3 . . . . 196 22 12 Average 54 | 3 . . . . 59 144 60 42 Influence Increases 1774 | 5 . 45 . 13 1055 222 154 280 Destroy 0b10 Robot/C 960 | . . 20 . . 680 100 80 80 Destroy 0b10 Robot/NC 35 | 5 . . . 5 5 5 10 5 Destroy Leader 82 | . . 10 . . 52 . . 20 Allied During Kill 320 | . . . . . 143 62 60 55 Successful Hack 133 | . . . . 6 96 8 . 23 Disable Machine 45 | . . . . . . 15 . 30 Destroy Structure 34 | . . . . 2 4 2 4 22 Partial Spotted 30 | . . . . . . 15 . 15 Lose Combat Pursuer 135 | . . 15 . . 75 15 . 30 Influence Decreases 1754 | . 5 45 . 13 703 518 174 296 Entered New Map 216 | . 2 . . . . 156 34 24 Time Decay 881 | . 3 45 . 13 386 212 100 122 Lost Part 225 | . . . . . 85 30 20 90 Lost Ally 401 | . . . . . 201 120 20 60 Purge Threat 31 | . . . . . 31 . . . Squads Dispatched 10 | . . . . 1 2 . . 7 Investigation 3 | . . . . . 2 . . 1 Extermination 1 | . . . . 1 . . . . Reinforcement 4 | . . . . . . . . 4 Assault . | . . . . . . . . . Garrison 2 | . . . . . . . . 2 Intercept . | . . . . . . . . . Searches Triggered . | . . . . . . . . . Construction Impeded 1 | . . . . . . . . 1 Haulers Reinforced . | . . . . . . . . . Active Scanning Responses . | . . . . . . . . . Cargo Convoy Interrupts . | . . . . . . . . . Stealth | -11 -10 -10 -9 -6 -6 -6 -6 -6 --------- Run | Yrd Mat Sub Scr Fac Ext Cet Arc Hub Distress Signals 10 | . . . . . 5 2 . 3 Communications Jammed . | . . . . . . . . . Distress Signals . | . . . . . . . . . Times Spotted 88 | . . 2 13 . 41 6 4 22 Peak Tracking Total 11 | . . 2 6 . 5 5 2 11 Tactical Retreats 8 | . . 1 . . 5 1 . 1 Traps | -11 -10 -10 -9 -6 -6 -6 -6 -6 ------- Run | Yrd Mat Sub Scr Fac Ext Cet Arc Hub Traps Triggered 4 | . . . . . 3 . . 1 Indirectly . | . . . . . . . . . Trap Hack Attempts . | . . . . . . . . . Triggered . | . . . . . . . . . Disarmed . | . . . . . . . . . Reprogrammed . | . . . . . . . . . Reused . | . . . . . . . . . Traps Extracted . | . . . . . . . . . Installed . | . . . . . . . . . Triggered . | . . . . . . . . . Machines | -11 -10 -10 -9 -6 -6 -6 -6 -6 ---------- Run | Yrd Mat Sub Scr Fac Ext Cet Arc Hub Machines Disabled 4 | . . . . . . 2 . 2 Max in Single Turn 1 | . . . . . . 1 . . Machines Repaired . | . . . . . . . . . Machines Dismantled . | . . . . . . . . . Machines Sabotaged . | . . . . . . . . . Overloaded Fab Kills . | . . . . . . . . . Hacking | -11 -10 -10 -9 -6 -6 -6 -6 -6 --------- Run | Yrd Mat Sub Scr Fac Ext Cet Arc Hub Machines Accessed 29 | . . . 4 4 14 3 1 3 Terminals 22 | . . . . 3 13 3 . 3 Fabricators . | . . . . . . . . . Repair Stations 2 | . . . . 1 1 . . . Recycling Units . | . . . . . . . . . Scanalyzers . | . . . . . . . . . Garrison Access . | . . . . . . . . . Total Hacks 103 | . . . 16 13 33 8 25 8 Successful 67 | . . . 16 7 13 2 25 4 Failed 36 | . . . . 6 20 6 . 4 Catastrophic 9 | . . . . 1 5 3 . . Database Lockouts . | . . . . . . . . . Manual 18 | . . . . 8 5 3 . 2 Terminals 57 | . . . . 10 31 8 . 8 Fabricators . | . . . . . . . . . Repair Stations 5 | . . . . 3 2 . . . Recycling Units . | . . . . . . . . . Scanalyzers . | . . . . . . . . . Garrison Access . | . . . . . . . . . Terminal Hacks 56 | . . . 16 1 10 2 25 2 Record 43 | . . . 16 . . 2 25 . Part Schematic 2 | . . . . . 2 . . . Prototype ID Bank 1 | . . . . . 1 . . . Open Door 7 | . . . . 1 6 . . . Emergency Access Points 2 | . . . . . . . . 2 Unreport Threat 1 | . . . . . 1 . . . Fabricator Hacks . | . . . . . . . . . Repair Station Hacks 4 | . . . . 2 2 . . . Scan Component 2 | . . . . 1 1 . . . Repair 2 | . . . . 1 1 . . . Recycling Unit Hacks . | . . . . . . . . . Scanalyzer . | . . . . . . . . . Garrison Access Hacks . | . . . . . . . . . Unauthorized Hacks 7 | . . . . 4 1 . . 2 Terminals 7 | . . . . 4 1 . . 2 Track 1 | . . . . . 1 . . . Assimilate 1 | . . . . 1 . . . . Botnet 2 | . . . . 1 . . . 1 Operators 1 | . . . . 1 . . . . Skim 2 | . . . . 1 . . . 1 Fabricators . | . . . . . . . . . Repair Stations . | . . . . . . . . . Recycling Units . | . . . . . . . . . Scanalyzers . | . . . . . . . . . Garrison Access . | . . . . . . . . . Data Cores Recovered . | . . . . . . . . . Used . | . . . . . . . . . Hacking Detections 18 | . . . . 3 9 3 . 3 Full Trace Events 2 | . . . . . 1 . . 1 Feedback Events 1 | . . . . . 1 . . . Corruption 1 | . . . . . 1 . . . Feedback Blocked . | . . . . . . . . . Robot Schematics Acquired . | . . . . . . . . . Robots Built . | . . . . . . . . . Authchips . | . . . . . . . . . Time . | . . . . . . . . . Total Robot Build Rating . | . . . . . . . . . Part Schematics Acquired 2 | . . . . . 2 . . . Parts Built . | . . . . . . . . . Authchips . | . . . . . . . . . Time . | . . . . . . . . . Total Part Build Rating . | . . . . . . . . . Part Studies Acquired . | . . . . . . . . . Parts Repaired 2 | . . . . 1 1 . . . Time 88 | . . . . 38 50 . . . Parts Recycled . | . . . . . . . . . Recycled Matter . | . . . . . . . . . Retrieved Matter . | . . . . . . . . . Retrieved Components . | . . . . . . . . . Parts Scanalyzed . | . . . . . . . . . Part Schematics Acquired . | . . . . . . . . . Parts Damaged . | . . . . . . . . . Bothacking | -11 -10 -10 -9 -6 -6 -6 -6 -6 ------------ Run | Yrd Mat Sub Scr Fac Ext Cet Arc Hub Used RIF Installer . | . . . . . . . . . Robots Hacked . | . . . . . . . . . Non-combat . | . . . . . . . . . Combat . | . . . . . . . . . Robot Hacks Applied . | . . . . . . . . . Relay Couplers Released . | . . . . . . . . . Fabnet Peak Effective % . | . . . . . . . . . Robots Rewired 16 | . . . . . 16 . . . Allies Hacked . | . . . . . . . . . Hacks Repelled . | . . . . . . . . . Allies | -11 -10 -10 -9 -6 -6 -6 -6 -6 -------- Run | Yrd Mat Sub Scr Fac Ext Cet Arc Hub Total Allies 29 | . . . . . 24 5 . . Largest Group 10 | . . . . . 8 10 6 4 Highest-Rated Group 727 | . . . . . 356 727 405 239 Highest-Rated Ally 159 | . . . . . 159 159 143 91 Total Orders . | . . . . . . . . . Ally Attacks 212 | . . . . . 134 30 27 21 Total Damage 5530 | . . . . . 2889 882 868 891 Kills 34 | . . . . . 20 6 4 4 Allies Corrupted . | . . . . . . . . . Allies Melted 4 | . . . 3 . . . . 1 Intel | -11 -10 -10 -9 -6 -6 -6 -6 -6 ------- Run | Yrd Mat Sub Scr Fac Ext Cet Arc Hub Active Infowar (turns) 2378 | . . . 550 620 1181 . . 27 Optics 550 | . . . 550 . . . . . Sensors 14 | . . . . . . . . 14 IFF 1801 | . . . . 620 1181 . . . Jamming 13 | . . . . . . . . 13 Robot Analysis Total . | . . . . . . . . . Derelict Logs Recovered 1 | . . . 1 . . . . . Drone Launches . | . . . . . . . . . Drone Recoveries . | . . . . . . . . . Exploration | -11 -10 -10 -9 -6 -6 -6 -6 -6 ------------- Run | Yrd Mat Sub Scr Fac Ext Cet Arc Hub Turns Passed 5436 | 11 207 296 1289 713 1989 458 213 260 Spaces Moved 3677 | 1 27 225 1581 299 893 244 158 249 Core 168 | . . . . . 6 . . 162 Treads 157 | . . . 5 146 6 . . . Legs 1211 | 1 9 . . . 712 244 158 87 Wheels 448 | . . 27 99 153 169 . . . Hover 1693 | . 18 198 1477 . . . . . Flight . | . . . . . . . . . Fastest Speed 50 | 120 56 56 56 140 110 120 120 50 Average Speed 101 | 120 80 72 77 143 137 120 120 79 Slowest Speed 550 | 120 130 180 160 160 550 120 120 260 Overloaded Moves . | . . . . . . . . . Propulsion Burnouts . | . . . . . . . . . Robots Hopped . | . . . . . . . . . Potential Cave-ins . | . . . . . . . . . Cave-ins Triggered . | . . . . . . . . . Exploration Rate (%) 44 | 2 8 14 93 5 75 67 97 35 Regions Visited 8 Branch Regions 6 Pre-discovered Areas 1 | . . 1 . . . . . . Known Exits Taken . | . . . . . . . . . Unknown Exits Taken 8 | 1 1 1 1 1 1 1 1 . Scrap Searched 5 | . . . 5 . . . . . Spaces Dug 1 | . . . . 1 . . . . Terrain Destroyed 26 | . . 17 . 2 2 1 . 4 Melee 1 | . . . . 1 . . . . Projectile 8 | . . . . 1 2 1 . 4 AOE 17 | . . 17 . . . . . . Terrain Rammed . | . . . . . . . . . Walls Destroyed . | . . . . . . . . . Machines Disabled . | . . . . . . . . . Actions | -11 -10 -10 -9 -6 -6 -6 -6 -6 --------- Run | Yrd Mat Sub Scr Fac Ext Cet Arc Hub Total 5108 | 4 212 348 1657 576 1455 393 173 290 Wait 954 | . 177 110 39 269 215 124 10 10 Move 3669 | . 26 224 1580 298 892 243 157 249 Hop . | . . . . . . . . . Pick Up 10 | . 3 1 6 . . . . . Fast Attach 53 | . 2 1 8 4 24 5 1 8 Attach 1 | . . 1 . . . . . . Detach 2 | . 1 . 1 . . . . . Swap 28 | . . 3 3 1 18 2 . 1 Drop 57 | . 3 1 20 1 23 4 . 5 Fire 55 | 4 . 7 . 1 17 15 . 11 Melee 117 | . . . . 2 104 . 5 6 Ram . | . . . . . . . . . Kick . | . . . . . . . . . Crush . | . . . . . . . . . Escape Stasis 10 | . . . . . 10 . . . Rewire 152 | . . . . . 152 . . . Trap . | . . . . . . . . . Miscellaneous . | . . . . . . . . . Route ------- -11/Scrapyard -10/Materials -10/Subcaves (discovered 2 exits: [*Mat] / *Scr) -9/Scraptown (discovered 2 exits: *Fac x2) -6/Factory -6/Extension (discovered 3 exits: [*Fac x2] / *Cet) -6/Cetus -6/Archives (discovered 3 exits: [*Fac] / *Hub x2) -6/Hub_04(d) History --------- Turn | Location | Event 12 | -11/Scrapyard | Discovered new exit (range 0) 12 | -11/Scrapyard | Entered Materials 199 | -10/Materials | Discovered new exit (range 6) 219 | -10/Materials | Entered Subcaves 220 | -10/Subcaves | Approached by a straggling Scientist 232 | -10/Subcaves | Discovered new exit (range 8) 300 | -10/Subcaves | Build established: Mutant 373 | -10/Subcaves | Shifting Twisted Machinery released Sub. Shrapnel Launcher 410 | -10/Subcaves | Shifting Twisted Machinery released Mak. Light Armor Plating 507 | -10/Subcaves | Learned location of Zion (-7) 507 | -10/Subcaves | Met a Zionite searching for "candidates" 513 | -10/Subcaves | Scientist uncovered a shortcut to Scraptown 515 | -10/Subcaves | Entered Scraptown 685 | -9/Scraptown | Scanned Subdweller tech in exchange for log data 687 | -9/Scraptown | Learned Factory interactive machine intel 694 | -9/Scraptown | Discovered new exit (range 11) 736 | -9/Scraptown | Visited Comm Corps 812 | -9/Scraptown | Visited Red Mages 820 | -9/Scraptown | Found Relay Coupler [Proto] 823 | -9/Scraptown | Found Relay Coupler [Proto] 836 | -9/Scraptown | Visited Cave Peace 958 | -9/Scraptown | Visited CR-KLE's Repair Center 974 | -9/Scraptown | Visited Assassins FH 987 | -9/Scraptown | Visited The Evicted 1012 | -9/Scraptown | Visited UFD Registry 1012 | -9/Scraptown | Registered with UFD as "Pipeslicer" 1025 | -9/Scraptown | Visited Curators Association 1033 | -9/Scraptown | Visited Supply Room 1046 | -9/Scraptown | Visited Abandonware Association 1053 | -9/Scraptown | Learned abandonware demo "KABOOM.EXE" 1053 | -9/Scraptown | Learned abandonware demo "REPAIR.EXE" 1125 | -9/Scraptown | Visited Junk Repository 1146 | -9/Scraptown | Visited Scrap Suit Storage 1163 | -9/Scraptown | Found Scrap Suit 1183 | -9/Scraptown | Visited DA-N13 Charitable Foundation 1188 | -9/Scraptown | Found DCF Scrap (28 items) 1212 | -9/Scraptown | Visited Junk Repository 1307 | -9/Scraptown | Visited Infowarlord's Domain 1314 | -9/Scraptown | Found Exp. Terrain Scan Processor 1336 | -9/Scraptown | Visited Cartography Club 1465 | -9/Scraptown | Build established: Scrapper 1663 | -9/Scraptown | Met Optimus 1663 | -9/Scraptown | Accepted into 0bPrime 1747 | -9/Scraptown | Civil war broke out across Scraptown 1774 | -9/Scraptown | Discovered new exit (range 8) 1804 | -9/Scraptown | Entered Factory 1804 | -6/Factory | Evolved 8 slots: Power x1, Propulsion x2, Utility x4, Weapon x1 1805 | -6/Factory | Loaded intel: 55 interactive machine locations 1817 | -6/Factory | Lost 4 allies 1884 | -6/Factory | Repaired Axe 2094 | -6/Factory | Build established: Mutant 2420 | -6/Factory | Discovered new exit (range 10) 2517 | -6/Factory | Entered Extension 2598 | -6/Extension | Repaired Magnetic Acceleration Cannon 2767 | -6/Extension | Rescued a captive Derelict 2769 | -6/Extension | Rescued a captive Derelict 2918 | -6/Extension | Lost 6 allies 2992 | -6/Extension | Lost 9 parts (4p3n1u1w) 3223 | -6/Extension | Rescued a captive Derelict 3224 | -6/Extension | Rescued a captive Derelict 3284 | -6/Extension | Build established: Scavenger-Mutant 3299 | -6/Extension | Rescued a captive Derelict 3300 | -6/Extension | Rescued a captive Derelict 3547 | -6/Extension | Rescued a captive Derelict 3592 | -6/Extension | Build established: Scavenger-Gladiator 3659 | -6/Extension | Spotted B-75 Beast 3719 | -6/Extension | Destroyed B-75 Beast 3746 | -6/Extension | Lost 3 parts (1p1u1w) 3748 | -6/Extension | Spotted B-75 Beast 3818 | -6/Extension | Destroyed B-75 Beast 3879 | -6/Extension | Discovered new exit (range 3) 4093 | -6/Extension | Rescued A7 4466 | -6/Extension | Discovered new exit (range 10) 4467 | -6/Extension | Discovered new exit (range 6) 4506 | -6/Extension | Entered Cetus 4506 | -6/Cetus | Accompanied by 8 allies (A7) 4511 | -6/Cetus | Acquired a Cetus Manufacturing Module code from A7 4519 | -6/Cetus | Spotted Cetus Guard 4519 | -6/Cetus | Spotted Cetus Guard 4520 | -6/Cetus | Spotted Cetus Guard 4533 | -6/Cetus | Spotted Cetus Guard 4545 | -6/Cetus | Allies destroyed Cetus Guard 4547 | -6/Cetus | Allies destroyed Cetus Guard 4551 | -6/Cetus | Allies destroyed Cetus Guard 4555 | -6/Cetus | Allies destroyed Cetus Guard 4568 | -6/Cetus | Lost 3 parts (2p1n) 4569 | -6/Cetus | Lost 3 allies 4668 | -6/Cetus | Started Cetus Manufacturing Module 4682 | -6/Cetus | Discovered new exit (range 16) 4693 | -6/Cetus | Manufactured an Enhanced Grunt 4718 | -6/Cetus | Manufactured an Enhanced Grunt 4743 | -6/Cetus | Manufactured an Enhanced Grunt 4768 | -6/Cetus | Manufactured an Enhanced Grunt 4793 | -6/Cetus | Manufactured an Enhanced Grunt 4900 | -6/Cetus | Spotted Cetus Guard 4964 | -6/Cetus | Entered Archives 4964 | -6/Archives | Accompanied by 6 allies (A7) 4965 | -6/Archives | Lost 3 allies 5008 | -6/Archives | Core integrity fell below 50% 5011 | -6/Archives | Discovered new exit (range 15) 5021 | -6/Archives | Unable to access archive contents 5034 | -6/Archives | Unable to access archive contents 5046 | -6/Archives | Unable to access archive contents 5099 | -6/Archives | Discovered new exit (range 16) 5136 | -6/Archives | Discovered new exit (range 13) 5177 | -6/Archives | Entered Hub_04(d) 5177 | -6/Hub_04(d) | Accompanied by 4 allies 5278 | -6/Hub_04(d) | Garrison activated, responded to threat 5294 | -6/Hub_04(d) | Build established: Scavenger-Mutant 5326 | -6/Hub_04(d) | Lost 4 allies 5342 | -6/Hub_04(d) | Core integrity fell below 20% 5366 | -6/Hub_04(d) | Lost 8 parts (4n2u2w) 5437 | -6/Hub_04(d) | Destroyed by G-67 Veteran with Field Laser Last Messages --------------- 05385_ Acquired Carbon-fiber Leg. 05385_ U-05 Engineer lays Concrete. 05387_ Penetrated by Slug. 05387_ Slug penetrates Wall. 05388_ U-05 Engineer builds a Door. 05390_ Penetrated by Slug. 05390_ Terminal disabled. 05390_ Penetrated by Slug. 05392_ K-01 Serf collects debris. 05401_ O-24 Administrator: "IFF HANDSHAKE FAILED. SECURING TERMINAL." 05401_ Carbon-fiber Leg destroyed. 05404_ ALERT: Hostiles spotted, dispatching reinforcements to Terminal H001. 05404_ Acquired Transmission Jammer. 05423_ Acquired Imp. Sensor Array. 05425_ ALERT: Suspicious intruders detected, dispatching Specialist reinforcements to area. 05427_ Acquired Coil Gun. 05434_ Dropped Coil Gun. Map ----- +----------------------------------------------------+ | ??? # """" # #???????????????????? | | ??????? """ / """" # #???????????????????? | | ??? # # #???????????????????? | | ?????######+############## #???????????????????? | | ??????# ??????# #???????????????????? | | ??????# ????# #???????????????????? | | ???????? ??# #???????????????????? | | ????????? """" # #####"T ###???????????????????? | | ????????? """" + #???#####?????????????????????? | | ????????? """" # #?????????????????????????????? | | ????????? """??# #?????????????????????????????? | | ????????? ????# #?????????????????????????????? | | ???????????????# #?????????????????????????????? | | ??????########## #?????????????????????????????? | | ??????# # #?????????????????????????????? | | ??????# " # #?????????????????????????????? | | ??????# " # ?#?????????????????????????????? | | ?????## " #? # """ ""??????????????????????? | | ?????# ! / + #???????????????????? | | ?????## !! " # #? #???????????????????? | | ??????# " # ?# ????????????????????????????? | | ??????# " # #?"???????????????????????????? | | ??????#= # #?##??????????????????????????? | | ?????###########k ################## #??????????? | | ?????# h AA????????? | | ???### @gggg g ????????? | | ???#"" Y g u A ????????? | | ???#T #####+#########;############+???????????? | | ???### # # #????????????????????? | | ?????# ?# # [ #????????????????????? | | ?????# ?# ?/ #????????????????????? | | ?????# ??# # #????????????????????? | | ?????# ??# # """" #????????????????????? | | ?????#???# # """" #????????????????????? | | ?????????# # """" #????????????????????? | | ?????????# # """" #????????????????????? | | ?????????# ###########????????????????????? | | ?????????##########??????????????????????????????? | | ?????????????????????????????????????????????????? | | ?????????????????????????????????????????????????? | | ?????????????????????????????????????????????????? | | ?????????????????????????????????????????????????? | | ?????????????????????????????????????????????????? | | ?????????????????????????????????????????????????? | | ?????????????????????????????????????????????????? | | ?????????????????????????????????????????????????? | | ?????????????????????????????????????????????????? | | ?????????????????????????????????????????????????? | | ?????????????????????????????????????????????????? | | | +----------------------------------------------------+ Best States ------------- Heat Dissipation 70 Energy Generation 38 Energy Capacity 530 Matter Stores 300 Matter Capacity 300 Sight Range 20 Robot Scan Range 15 Terrain Scan Density 310 Jamming Range 12 Corruption Containment 8 Armor Coverage 450 Resistance: TH 15 Evasion (%) 55 Melee Accuracy 10 Recoil Reduction 2 Item Schematics ----------------- Adv. Cryofiber Web | -6/Extension | Hacked Lrn. Terrain Scanner | -6/Extension | Hacked Robot Schematics ------------------ None Fabricated ------------ Nothing Repaired ---------- Axe | 70% | -6/Factory Magnetic Acceleration Cannon | 63% | -6/Extension Studied --------- None Alien Tech Used ----------------- None Achievements -------------- Civilization 2243 Link The Feds Nice Directions, Buddy Project G-00 Uncivil War Challenges ------------ None Game ------ Seed LauncherHardlightNullifier Manual? 0 Play Time 01:16:19 Cumulative 152.3 hours Start 2025.11.01 @ 00:35:28 End 2025.11.01 @ 01:57:05 Sessions 1 Manual Loads 0 Difficulty Rogue Special Mode None Game No. 156 Rogue 154 Adventurer 2 Explorer 0 Win Type - Total 0 Types 0/0/0/0/0/0/0/0/0/0 Lore% 64 Gallery% 56 Achievement% 30 Wizard Run 0 Options --------- Layout 2 ASCII 0 Keyboard 1 Movement Vi Keybinds 0 Fullscreen 0 Font 42/SmallcapsGlow Map View 59x48 Zoom Use 0% Tactical HUD 1 Map Filters NONE Filters NONE Steam 1 RUN: d9c3bedd-9a7e-456b-9862-76f5d16de047